bitfinex/quotes_BTCUSD_20220207
["timestamp","ask_amount","ask_price","bid_price","bid_amount"]
[1644200930271,0.00117347,42428.0,42426.0,0.41738716]
[1644200930471,0.00117347,42428.0,42426.0,0.36738716]
[1644200930674,0.00117347,42428.0,42426.0,0.63255716]
[1644200930675,0.00074906,42428.0,42426.0,0.63255716]
[1644200930872,0.00070431,42427.0,42426.0,0.63409666]
[1644200931070,0.00070431,42427.0,42426.0,0.68409666]
[1644200931270,0.00070431,42427.0,42426.0,0.36247]
[1644200931472,0.00070431,42427.0,42426.0,0.67257506]
[1644200931671,0.00070431,42427.0,42426.0,0.37347]
[1644200931871,0.00070431,42427.0,42426.0,0.22347]
[1644200932072,0.001,42429.0,42427.0,0.9]
[1644200932073,0.0001274,42429.0,42427.0,0.9]
[1644200932317,0.0001274,42429.0,42428.0,0.3363341]
[1644200932518,0.0001274,42429.0,42428.0,0.2863341]
[1644200932721,0.0001274,42429.0,42428.0,0.69811783]
[1644200933018,0.01071217,42430.0,42428.0,0.3863341]
[1644200933222,0.01071217,42430.0,42429.0,0.058911]
[1644200933518,0.01071217,42430.0,42429.0,0.271365]
[1644200933718,0.01071217,42430.0,42429.0,0.47407192]
[1644200935722,0.01071217,42430.0,42429.0,0.48307192]
[1644200936170,0.01071217,42430.0,42429.0,0.47407192]
[1644200936771,0.01071217,42430.0,42429.0,0.82202439]
[1644200937769,0.01071217,42430.0,42429.0,0.83202439]
[1644200938474,0.01071217,42430.0,42429.0,0.58407192]
[1644200938671,0.01071217,42430.0,42429.0,0.90459772]
[1644200938872,0.00042441,42432.0,42430.0,1.12404635]
[1644200939071,0.002,42433.0,42431.0,0.58383046]
[1644200939272,0.002,42433.0,42432.0,0.47205449]
[1644200939470,0.002,42433.0,42432.0,0.212438]
[1644200939722,0.0004437,42434.0,42432.0,0.312438]
[1644200940021,0.0052202,42444.0,42438.0,0.08833959]
[1644200940215,0.0052202,42444.0,42440.0,0.05]
[1644200940417,0.0052202,42444.0,42442.0,0.165085]
[1644200940616,0.26642653,42449.0,42440.0,0.0973]
[1644200940815,0.26642653,42449.0,42443.0,0.117786]
[1644200941515,0.26642653,42449.0,42440.0,0.0973]
[1644200941717,0.26476077,42447.0,42443.0,0.008]
[1644200941918,0.26476077,42447.0,42440.0,0.05]
[1644200941919,1.230028,42446.0,42440.0,0.05]
[1644200942117,0.330028,42444.0,42437.0,0.01896542]
[1644200942317,0.23955844,42440.0,42437.0,0.01896542]
[1644200942515,0.330028,42439.0,42437.0,0.01896542]
[1644200942917,0.330028,42439.0,42436.0,0.00056482]
[1644200943118,0.00040425,42441.0,42436.0,0.00056482]
[1644200943320,0.330028,42439.0,42436.0,0.00056482]
[1644200943767,0.330028,42439.0,42436.0,0.01656482]
[1644200943967,0.11891499,42441.0,42436.0,0.016]
[1644200944166,0.00040425,42440.0,42436.0,0.016]
[1644200944465,0.22162714,42440.0,42436.0,0.016]
[1644200945165,0.22122289,42440.0,42436.0,0.016]
[1644200945366,0.22162714,42440.0,42436.0,0.01656482]
[1644200945566,0.22162714,42440.0,42436.0,0.00056482]
[1644200945767,0.330028,42439.0,42436.0,0.01156482]
[1644200945968,0.69339981,42439.0,42436.0,0.01156482]
[1644200946171,0.330028,42438.0,42436.0,0.01156482]
[1644200946368,0.377328,42437.0,42436.0,0.011]
[1644200947070,0.377328,42437.0,42435.0,0.00056482]
[1644200947322,0.00040425,42440.0,42435.0,0.00056482]
[1644200947520,0.0473,42442.0,42435.0,0.05891]
[1644200947720,0.013,42437.0,42436.0,0.05]
[1644200947918,0.013,42437.0,42436.0,0.215117]
[1644200948419,0.013,42437.0,42436.0,0.05]
[1644200949022,0.00040424,42440.0,42436.0,0.05]
[1644200949823,0.012,42440.0,42436.0,0.06]
[1644200950122,0.01240425,42440.0,42436.0,0.06056482]
[1644200950972,0.00040425,42440.0,42436.0,0.05056482]
[1644200951175,0.330028,42441.0,42436.0,0.05]
[1644200951377,0.330028,42441.0,42436.0,0.05044353]
[1644200951773,0.26077018,42442.0,42436.0,0.06044353]
[1644200951973,0.013,42441.0,42436.0,0.06044353]
[1644200952177,0.330028,42440.0,42436.0,0.06044353]
[1644200952376,0.330028,42440.0,42436.0,0.06]
[1644200952575,0.330028,42440.0,42436.0,0.06044353]
[1644200952776,0.013,42441.0,42436.0,0.06044353]
[1644200952977,0.330028,42440.0,42436.0,0.05044353]
[1644200953576,0.330028,42440.0,42436.0,0.05]
[1644200953777,0.40043124,42440.0,42436.0,0.05056451]
[1644200954178,0.0473,42439.0,42436.0,0.05056451]
[1644200954378,0.330028,42438.0,42436.0,0.05056451]
[1644200954579,0.377328,42437.0,42436.0,0.05056451]
[1644200954819,0.377328,42437.0,42436.0,0.05]
[1644200955718,0.395328,42437.0,42436.0,0.05]
[1644200956119,0.018,42437.0,42436.0,0.05]
[1644200956522,0.348028,42437.0,42436.0,0.05]
[1644200957120,0.330028,42437.0,42436.0,0.05]
[1644200957723,0.395028,42437.0,42434.0,0.0005356]
[1644200957920,0.330028,42436.0,42434.0,0.0005356]
[1644200958321,0.330028,42436.0,42432.0,0.1]
[1644200958572,0.25348076,42435.0,42433.0,0.00053562]
[1644200958772,0.26431035,42434.0,42433.0,0.00053562]
[1644200959375,0.59433835,42434.0,42433.0,0.00053562]
[1644200959673,0.59433835,42434.0,42432.0,0.05]
[1644200959873,0.61133835,42434.0,42432.0,0.05]
[1644200960271,0.347028,42434.0,42432.0,0.05]
[1644200961072,0.330028,42434.0,42432.0,0.05]
[1644200961875,0.344028,42434.0,42432.0,0.058]
[1644200962522,0.014,42434.0,42433.0,0.05]
[1644200962719,0.014,42434.0,42432.0,0.058]
[1644200962920,0.014,42434.0,42433.0,0.05]
[1644200963119,0.26099941,42439.0,42433.0,0.05]
[1644200963320,0.26099941,42439.0,42432.0,0.05]
[1644200963620,0.26099941,42439.0,42433.0,0.05]
[1644200963621,0.330028,42437.0,42433.0,0.05]
[1644200963818,0.2693809,42438.0,42433.0,0.054]
[1644200963819,0.330028,42436.0,42433.0,0.054]
[1644200964019,0.2693809,42438.0,42433.0,0.054]
[1644200964422,0.330028,42437.0,42433.0,0.054]
[1644200965020,0.330028,42437.0,42433.0,0.05]
[1644200965522,0.330028,42437.0,42433.0,0.045]
[1644200965523,0.335028,42437.0,42433.0,0.045]
[1644200965722,0.005,42434.0,42433.0,0.045]
[1644200966369,0.018,42437.0,42433.0,0.045]
[1644200967071,0.2693809,42438.0,42433.0,0.045]
[1644200967870,0.3003809,42438.0,42433.0,0.048]
[1644200968069,0.005,42435.0,42433.0,0.04855883]
[1644200968269,0.20195785,42445.0,42433.0,0.05055883]
[1644200968469,0.38207296,42446.0,42433.0,0.05055883]
[1644200968670,0.18011511,42446.0,42433.0,0.05055883]
[1644200969071,0.1946082,42442.0,42433.0,0.28087342]
[1644200969272,0.34388955,42440.0,42433.0,0.05]
[1644200969471,0.34388955,42440.0,42433.0,0.07022883]
[1644200969472,0.24652361,42439.0,42433.0,0.07022883]
[1644200969723,0.24652361,42439.0,42433.0,0.08022883]
[1644200970515,0.013,42440.0,42433.0,0.08022883]
[1644200971118,0.33530829,42441.0,42433.0,0.05]
[1644200971519,0.23889817,42440.0,42433.0,0.05]
[1644200971717,0.23889817,42440.0,42435.0,0.00054237]
[1644200971915,0.23889817,42440.0,42433.0,0.05]
[1644200971916,0.8,42439.0,42433.0,0.05]
[1644200972116,0.33495,42438.0,42433.0,0.06476207]
[1644200972515,0.005,42438.0,42433.0,0.06476207]
[1644200973566,0.005,42438.0,42433.0,0.045]
[1644200973767,0.017,42438.0,42433.0,0.055]
[1644200974971,0.012,42438.0,42433.0,0.055]
[1644200975168,0.77513863,42442.0,42433.0,0.045]
[1644200975368,9.961e-05,42439.0,42432.0,0.095]
[1644200975771,0.00509961,42439.0,42433.0,0.01]
[1644200975970,0.24938938,42439.0,42433.0,0.01]
[1644200976267,0.25438938,42439.0,42433.0,0.01]
[1644200976467,0.25428977,42439.0,42433.0,0.01054595]
[1644200976669,0.24962179,42439.0,42433.0,0.01054595]
[1644200977069,0.24962179,42439.0,42433.0,0.00054595]
[1644200977521,0.24928977,42439.0,42432.0,0.095]
[1644200977719,0.24928977,42439.0,42433.0,0.00054506]
[1644200977720,0.005,42437.0,42433.0,0.00054506]
[1644200977917,0.005,42437.0,42433.0,0.01054506]
[1644200978720,0.005,42437.0,42433.0,0.01]
[1644200978920,0.26661882,42439.0,42433.0,0.01054505]
[1644200979122,0.25461882,42439.0,42433.0,0.00054505]
[1644200979924,0.26728977,42439.0,42433.0,0.01]
[1644200980129,0.26728977,42439.0,42433.0,0.01054506]
[1644200980324,0.26761883,42439.0,42433.0,0.01054506]
[1644200980970,0.26761883,42439.0,42433.0,0.00054506]
[1644200981169,0.25428977,42439.0,42432.0,0.34465041]
[1644200981372,0.25461883,42439.0,42433.0,0.00054506]
[1644200981767,0.26661883,42439.0,42433.0,0.00054506]
[1644200982370,0.26661883,42439.0,42432.0,0.10154506]
[1644200982371,0.26628977,42439.0,42432.0,0.10154506]
[1644200982570,0.26661949,42439.0,42433.0,0.00054526]
[1644200982777,0.26661949,42439.0,42430.0,0.02678926]
[1644200982778,0.9,42434.0,42430.0,0.02678926]
[1644200983072,0.005,42431.0,42430.0,0.02678926]
[1644200983274,0.58289274,42431.0,42430.0,0.02678926]
[1644200983470,0.91753441,42431.0,42430.0,0.02678926]
[1644200983672,0.71689167,42431.0,42430.0,0.02678926]
[1644200983871,0.72489167,42431.0,42430.0,0.02678926]
[1644200984575,0.33795,42431.0,42430.0,0.02678926]
[1644200984822,0.008,42431.0,42430.0,0.02678926]
[1644200985220,0.20776406,42434.0,42430.0,0.02678926]
[1644200985821,0.21576406,42434.0,42430.0,0.02678926]
[1644200986022,0.005,42432.0,42430.0,0.02678926]
[1644200986221,0.005,42432.0,42430.0,0.02223507]
[1644200986722,0.008,42434.0,42430.0,0.02223507]
[1644200986925,0.005,42433.0,42430.0,0.02223507]
[1644200987121,0.005,42433.0,42430.0,0.02178926]
[1644200987320,0.005,42433.0,42430.0,0.022357]
[1644200987721,0.20580906,42431.0,42430.0,0.022357]
[1644200988323,0.20580906,42431.0,42430.0,0.02178926]
[1644200988770,0.58305906,42431.0,42430.0,0.02178926]
[1644200989771,0.59405906,42431.0,42430.0,0.02178926]
[1644200990577,0.38825,42431.0,42430.0,0.02178475]
[1644200990874,0.011,42431.0,42430.0,0.02178475]
[1644200991274,0.37000341,42435.0,42430.0,0.02178475]
[1644200991471,0.37500341,42435.0,42430.0,0.02178475]
[1644200991871,0.38300341,42435.0,42430.0,0.02178475]
[1644200992072,0.38259613,42435.0,42430.0,0.02178475]
[1644200992319,0.38259613,42435.0,42430.0,0.02235249]
[1644200992320,0.38300342,42435.0,42430.0,0.02235249]
[1644200992921,0.01340729,42435.0,42430.0,0.02235249]
[1644200993123,0.0473,42436.0,42430.0,0.02178475]
[1644200993521,0.00040729,42435.0,42430.0,0.02235249]
[1644200994323,0.0583,42436.0,42430.0,0.06678475]
[1644200994521,0.011,42436.0,42430.0,0.06735249]
[1644200994721,0.00040729,42435.0,42430.0,0.06735249]
[1644200994920,0.00040729,42435.0,42430.0,0.02235249]
[1644200995322,0.00040729,42435.0,42432.0,0.045]
[1644200995522,0.00040729,42435.0,42434.0,0.045]
[1644200995725,0.0523,42441.0,42434.0,0.045]
[1644200995726,0.00012219,42436.0,42434.0,0.045]
[1644200995972,0.01,42435.0,42431.0,0.045]
[1644200996370,0.01,42435.0,42430.0,0.02178475]
[1644200996771,0.01,42435.0,42430.0,0.06678475]
[1644200997072,0.0523,42441.0,42430.0,0.02223131]
[1644200997073,0.005,42436.0,42430.0,0.02223131]
[1644200997273,0.005,42436.0,42430.0,0.06723131]
[1644200997872,0.015,42436.0,42430.0,0.06723131]
[1644200998072,0.015,42436.0,42430.0,0.06678475]
[1644200998274,0.015,42436.0,42431.0,0.00040261]
[1644200999173,0.005,42436.0,42430.0,0.06678475]
[1644200999373,0.005,42436.0,42431.0,0.00052481]
[1644200999575,0.0054086,42436.0,42431.0,0.00052481]
[1644200999823,0.0154086,42436.0,42432.0,0.058919]
[1644201000224,0.0104086,42436.0,42432.0,0.058919]
[1644201000423,0.01,42436.0,42432.0,0.058919]
[1644201000826,0.0104086,42436.0,42432.0,0.058919]
[1644201001222,0.0004086,42436.0,42432.0,0.058919]
[1644201001623,0.005,42439.0,42432.0,0.058919]
[1644201001825,0.0473,42441.0,42432.0,0.058919]
[1644201001826,0.0104086,42436.0,42434.0,0.045]
[1644201002023,0.0104086,42436.0,42435.0,0.32995]
[1644201002923,0.01,42436.0,42435.0,0.32995]
[1644201003124,0.0004086,42438.0,42435.0,0.32995]
[1644201003568,0.006152,42436.0,42435.0,0.32995]
[1644201005974,0.016152,42436.0,42435.0,0.41199943]
[1644201006175,0.016152,42436.0,42435.0,0.81617124]
[1644201006373,0.006152,42436.0,42435.0,0.81617124]
[1644201006573,0.20195785,42450.0,42445.0,0.07646094]
[1644201006773,0.20195785,42450.0,42437.0,0.117796]
[1644201006774,0.00163407,42446.0,42439.0,0.05]
[1644201006976,0.00163407,42446.0,42444.0,0.19296143]
[1644201007228,0.00163407,42446.0,42445.0,0.32995]
[1644201007622,0.20195785,42452.0,42445.0,0.32995]
[1644201007823,0.0004086,42448.0,42446.0,0.05753104]
[1644201008023,0.0004086,42448.0,42447.0,0.32995]
[1644201008224,0.0004086,42448.0,42446.0,0.05753104]
[1644201008424,0.0004086,42448.0,42445.0,0.058896]
[1644201008626,0.0004086,42448.0,42446.0,0.165075]
[1644201008824,0.09219389,42453.0,42452.0,0.1953275]
[1644201009825,0.10219389,42453.0,42452.0,0.1953275]
[1644201010024,0.00219389,42453.0,42452.0,0.26249847]
[1644201010624,0.00219389,42453.0,42452.0,0.59244847]
[1644201011276,0.001,42454.0,42452.0,0.26249847]
[1644201011477,0.2240642,42459.0,42452.0,0.26249847]
[1644201011675,0.00125108,42458.0,42452.0,0.26249847]
[1644201011875,0.01,42454.0,42452.0,0.26249847]
[1644201012473,0.01,42454.0,42453.0,0.32995]
[1644201013077,0.00125108,42456.0,42455.0,0.164984]
[1644201013878,0.01225108,42456.0,42455.0,0.164984]
[1644201014075,0.00725108,42456.0,42455.0,0.164984]
[1644201014475,0.00725108,42456.0,42455.0,0.17503145]
[1644201014735,0.00725108,42456.0,42455.0,0.18515045]
[1644201015824,0.003,42456.0,42455.0,0.18515045]
[1644201017125,0.00262535,42458.0,42455.0,0.18515045]
[1644201017329,0.00250216,42458.0,42456.0,0.32995]
[1644201017526,0.00291178,42458.0,42455.0,0.02016645]
[1644201017725,0.00291178,42458.0,42456.0,0.32995]
[1644201017927,0.01291178,42458.0,42456.0,0.32995]
[1644201018570,8.777e-05,42456.0,42455.0,0.02016645]
[1644201018771,8.777e-05,42456.0,42455.0,0.18512345]
[1644201019972,0.01008777,42456.0,42455.0,0.18512345]
[1644201020770,0.00291178,42458.0,42456.0,0.6]
[1644201020771,0.00500432,42458.0,42456.0,0.6]
[1644201020970,0.00109044,42462.0,42460.0,0.08355643]
[1644201021171,0.00109044,42462.0,42460.0,0.08316643]
[1644201021372,0.00109044,42462.0,42458.0,0.05]
[1644201021373,0.00109044,42462.0,42459.0,0.02016645]
[1644201021972,0.01209044,42462.0,42459.0,0.23695808]
[1644201022824,0.01209044,42462.0,42460.0,0.0846801]
[1644201023123,0.01209044,42462.0,42461.0,0.32995]
[1644201023324,0.00109044,42462.0,42461.0,0.388829]
[1644201023924,0.01109044,42462.0,42461.0,0.388829]
[1644201024126,0.01109044,42462.0,42461.0,0.058879]
[1644201024525,0.00109044,42462.0,42461.0,0.05888]
[1644201024925,0.05109044,42462.0,42459.0,0.02016645]
[1644201025727,0.00109044,42462.0,42459.0,0.07904945]
[1644201025969,0.01209044,42462.0,42459.0,0.07904945]
[1644201026371,0.01209044,42462.0,42459.0,0.06393045]
[1644201026571,0.01209044,42462.0,42460.0,0.27529077]
[1644201026771,0.00709044,42462.0,42460.0,0.28033822]
[1644201026974,0.00709044,42462.0,42461.0,0.40115995]
[1644201027173,0.00709044,42462.0,42461.0,0.07120995]
[1644201027371,0.00218011,42463.0,42461.0,0.07120995]
[1644201028071,0.00977152,42463.0,42461.0,0.13220995]
[1644201028278,0.004,42469.0,42462.0,0.9]
[1644201028573,0.00040859,42464.0,42463.0,0.05]
[1644201028771,0.00040859,42464.0,42463.0,0.21487]
[1644201029481,0.00363413,42470.0,42464.0,0.329933]
[1644201029482,0.002,42470.0,42464.0,0.329933]
[1644201029730,0.002,42470.0,42469.0,0.29552061]
[1644201029926,0.002,42470.0,42469.0,0.164843]
[1644201030124,0.002,42470.0,42465.0,0.05]
[1644201030326,0.002,42470.0,42467.0,0.23583077]
[1644201030725,0.00240859,42470.0,42469.0,0.32995]
[1644201030926,0.00240859,42470.0,42469.0,0.4050425]
[1644201031725,0.002,42470.0,42469.0,0.4050425]
[1644201031926,0.016,42470.0,42469.0,0.42720895]
[1644201032129,0.011,42470.0,42469.0,0.35211645]
[1644201032730,0.011,42470.0,42469.0,0.02216645]
[1644201032930,0.34095,42470.0,42469.0,0.02216645]
[1644201033127,0.73602786,42470.0,42469.0,0.02216645]
[1644201033330,0.72502786,42470.0,42469.0,0.01516645]
[1644201033772,0.72002786,42470.0,42469.0,0.01516645]
[1644201033973,0.73302786,42470.0,42469.0,0.01516645]
[1644201034376,0.33795,42470.0,42469.0,0.01516645]
[1644201034573,0.61176185,42470.0,42469.0,0.01516645]
[1644201034777,0.864193,42470.0,42469.0,0.01516645]
[1644201035173,0.851193,42470.0,42469.0,0.01516645]
[1644201036377,0.846193,42470.0,42469.0,0.01516645]
[1644201036576,0.58216682,42470.0,42469.0,0.01516645]
[1644201036776,0.31995,42470.0,42466.0,0.0608914]
[1644201036977,0.31995,42470.0,42463.0,0.29383861]
[1644201037261,0.00140371,42470.0,42463.0,0.23496261]
[1644201037646,0.26127908,42470.0,42463.0,0.23496261]
[1644201037847,0.00140371,42470.0,42463.0,0.23496261]
[1644201038048,0.00140371,42470.0,42464.0,0.1376285]
[1644201038049,0.01240371,42470.0,42464.0,0.1376285]
[1644201038248,0.01240371,42470.0,42465.0,0.329878]
[1644201038450,0.01240371,42470.0,42465.0,0.388749]
[1644201038649,0.01240371,42470.0,42465.0,0.329878]
[1644201038849,0.01240371,42470.0,42464.0,0.1376285]
[1644201039250,0.00140371,42470.0,42464.0,0.1376285]
[1644201039851,0.00140371,42470.0,42464.0,0.15753412]
[1644201040055,0.01340371,42470.0,42464.0,0.16953412]
[1644201040852,0.01340371,42470.0,42465.0,0.329878]
[1644201041084,0.00926321,42470.0,42469.0,0.05]
[1644201041280,0.00492355,42471.0,42469.0,0.2246324]
[1644201041481,0.00492355,42471.0,42470.0,0.329836]
[1644201042078,0.00492355,42471.0,42470.0,0.341836]
[1644201042481,0.00013008,42472.0,42471.0,0.9]
[1644201042683,0.00013008,42472.0,42471.0,1.44278926]
[1644201043480,0.00013008,42472.0,42471.0,1.122191]
[1644201043980,0.05313008,42472.0,42471.0,1.134191]
[1644201044182,0.04813008,42472.0,42471.0,1.44645233]
[1644201044385,0.04813008,42472.0,42471.0,1.51293402]
[1644201044578,0.00340655,42474.0,42472.0,0.447516]
[1644201044831,0.003,42474.0,42473.0,0.0970324]
[1644201045030,0.003,42474.0,42473.0,0.39652128]
[1644201045235,0.00340655,42474.0,42473.0,0.39652128]
[1644201045630,0.0939091,42492.0,42475.0,1.22979]
[1644201045834,0.001,42496.0,42487.0,0.07889225]
[1644201046035,0.00052784,42506.0,42494.0,0.05]
[1644201046233,0.00052784,42506.0,42504.0,0.04651608]
[1644201046432,0.329878,42505.0,42504.0,0.04651608]
[1644201046629,0.54386907,42505.0,42504.0,0.28583639]
[1644201046830,0.329878,42505.0,42504.0,0.28583639]
[1644201047029,0.329878,42505.0,42504.0,0.04151608]
[1644201047030,0.61588767,42505.0,42504.0,0.04151608]
[1644201047230,0.61588767,42505.0,42498.0,0.05]
[1644201047630,0.319878,42505.0,42498.0,0.05]
[1644201047835,0.27913595,42504.0,42498.0,0.0687028]
[1644201048033,0.329878,42503.0,42498.0,0.0737028]
[1644201048231,0.35120424,42501.0,42498.0,0.0737028]
[1644201048489,0.329789,42500.0,42498.0,0.0737028]
[1644201048684,0.35120424,42501.0,42498.0,0.0737028]
[1644201048886,0.21792979,42500.0,42498.0,0.0737028]
[1644201049187,0.19837536,42499.0,42498.0,0.0737028]
[1644201049483,0.05,42499.0,42498.0,0.05]
[1644201049683,0.31792979,42500.0,42498.0,0.05]
[1644201049883,0.329789,42499.0,42498.0,0.0498928]
[1644201050085,0.379789,42499.0,42498.0,0.0498928]
[1644201050386,0.05,42499.0,42493.0,0.09681895]
[1644201050583,0.05884269,42498.0,42493.0,0.09681895]
[1644201050783,0.10884269,42498.0,42493.0,0.09681895]
[1644201051184,0.11474416,42498.0,42494.0,0.0055]
[1644201051385,0.10974416,42498.0,42494.0,0.0055]
[1644201051583,0.0005,42497.0,42493.0,0.07878358]
[1644201051982,0.0005,42497.0,42493.0,0.08178358]
[1644201052235,0.0005,42497.0,42493.0,0.003]
[1644201052430,0.00090147,42497.0,42493.0,0.003]
[1644201052629,0.00090147,42497.0,42494.0,0.05]
[1644201052831,0.00090147,42497.0,42493.0,0.003]
[1644201053231,0.00040147,42497.0,42493.0,0.003]
[1644201053432,0.0005,42499.0,42493.0,0.003]
[1644201053631,0.00040147,42497.0,42492.0,0.30135434]
[1644201053831,0.00040147,42497.0,42492.0,0.22498523]
[1644201054032,0.00040147,42497.0,42493.0,0.008]
[1644201054631,0.0005,42498.0,42492.0,0.27498523]
[1644201055131,0.00040147,42497.0,42492.0,0.22498523]
[1644201055535,0.00540147,42497.0,42492.0,0.22498523]
[1644201055731,0.005,42497.0,42492.0,0.22498523]
[1644201055974,0.00540147,42497.0,42492.0,0.22498523]
[1644201056275,0.22161109,42494.0,42492.0,0.23198523]
[1644201056478,0.005,42494.0,42492.0,0.007]
[1644201056675,0.0055,42494.0,42492.0,0.007]
[1644201056876,0.0005,42494.0,42492.0,0.007]
[1644201057275,0.0005,42494.0,42490.0,0.05]
[1644201057676,0.0005,42494.0,42491.0,0.06349125]
[1644201058081,0.0005,42494.0,42492.0,0.05]
[1644201058577,0.005,42500.0,42490.0,0.056]
[1644201058578,0.00040147,42495.0,42490.0,0.056]
[1644201058778,0.23899299,42495.0,42490.0,0.056]
[1644201058980,0.52798736,42494.0,42490.0,0.056]
[1644201059179,0.377089,42493.0,42490.0,0.056]
[1644201059378,0.377089,42493.0,42490.0,0.05]
[1644201059379,0.427089,42493.0,42490.0,0.05]
[1644201059577,0.432589,42493.0,42490.0,0.05]
[1644201059826,0.329789,42491.0,42490.0,0.05]
[1644201060027,0.377089,42491.0,42490.0,0.05]
[1644201060523,0.377089,42491.0,42490.0,0.045]
[1644201060730,0.329789,42491.0,42490.0,0.045]
[1644201062129,0.0005,42492.0,42490.0,0.045]
[1644201062527,0.00090147,42493.0,42490.0,0.045]
[1644201063029,0.0005,42493.0,42490.0,0.045]
[1644201063476,0.329789,42492.0,42490.0,0.045]
[1644201063677,0.0005,42493.0,42490.0,0.045]
[1644201063878,0.0005,42492.0,42490.0,0.045]
[1644201064078,0.0005,42492.0,42490.0,0.051]
[1644201064279,0.0005,42494.0,42490.0,0.051]
[1644201064579,0.00040147,42493.0,42490.0,0.052]
[1644201064980,0.20166335,42491.0,42490.0,0.052]
[1644201065179,0.80709723,42491.0,42490.0,0.047]
[1644201065380,0.89142771,42511.0,42492.0,0.22925533]
[1644201065579,0.63985293,42511.0,42492.0,0.22925533]
[1644201065783,0.68985293,42511.0,42490.0,0.001]
[1644201065979,1.28075293,42511.0,42490.0,0.07805001]
[1644201066179,1.28075293,42511.0,42492.0,0.006]
[1644201066379,0.68985293,42511.0,42492.0,0.006]
[1644201066779,0.6263967,42511.0,42492.0,0.21328273]
[1644201066979,0.6263967,42511.0,42497.0,0.06830245]
[1644201067237,0.37653,42511.0,42497.0,0.06830245]
[1644201067428,0.27653,42511.0,42497.0,0.06830245]
[1644201067627,0.37653,42511.0,42497.0,0.06830245]
[1644201067828,0.37653,42511.0,42492.0,0.20728273]
[1644201068029,0.37653,42511.0,42502.0,0.00040976]
[1644201068630,0.27653,42511.0,42502.0,0.00040976]
[1644201068929,0.37653,42511.0,42497.0,0.07937025]
[1644201069329,0.37653,42511.0,42504.0,0.00052718]
[1644201069829,0.27653,42511.0,42504.0,0.00052718]
[1644201070029,0.37653,42511.0,42504.0,0.00052718]
[1644201070228,0.37653,42511.0,42494.0,0.25473223]
[1644201070429,0.37653,42511.0,42505.0,0.00052717]
[1644201070729,0.18056875,42511.0,42505.0,0.00052717]
[1644201070977,0.13056875,42511.0,42505.0,0.00052717]
[1644201071175,0.03056875,42511.0,42505.0,0.00052717]
[1644201071379,0.294227,42512.0,42497.0,0.19084472]
[1644201071576,0.34191842,42512.0,42506.0,0.00052706]
[1644201071776,0.44191842,42512.0,42506.0,0.00052706]
[1644201072177,0.54191842,42512.0,42506.0,0.00052706]
[1644201072378,0.53691842,42512.0,42506.0,0.00052706]
[1644201072579,0.418836,42512.0,42497.0,0.19084472]
[1644201072777,0.95884335,42510.0,42507.0,0.00052705]
[1644201072978,0.117689,42508.0,42507.0,0.00052705]
[1644201073278,0.164989,42508.0,42507.0,7.41e-06]
[1644201073486,1.09715932,42508.0,42507.0,7.41e-06]
[1644201073778,0.05,42507.0,42496.0,0.0003]
[1644201074077,0.649752,42504.0,42496.0,0.0003]
[1644201074280,0.48588119,42503.0,42496.0,0.0003]
[1644201074828,0.11770428,42502.0,42496.0,0.0003]
[1644201075031,0.5909,42499.0,42496.0,0.0003]
[1644201075233,0.38030418,42498.0,42497.0,0.00040993]
[1644201075427,0.48030418,42498.0,42497.0,0.00040993]
[1644201075627,0.48030418,42498.0,42488.0,9.93e-06]
[1644201075628,0.9,42497.0,42488.0,9.93e-06]
[1644201075829,0.27452145,42496.0,42488.0,9.93e-06]
[1644201076030,0.708621,42494.0,42488.0,9.93e-06]
[1644201076232,0.5909,42489.0,42488.0,0.00100993]
[1644201076428,1.06083329,42489.0,42469.0,0.1]
[1644201076630,0.0236,42488.0,42470.0,0.07587297]
[1644201076833,0.5909,42483.0,42470.0,0.07587297]
[1644201077028,0.5909,42483.0,42473.0,0.21211871]
[1644201077029,0.117742,42481.0,42473.0,0.21211871]
[1644201077229,2.75408044,42471.0,42468.0,0.2249695]
[1644201077432,2.75408044,42471.0,42468.0,0.2749695]
[1644201077630,0.106168,42475.0,42468.0,0.2249695]
[1644201077830,0.106168,42475.0,42466.0,0.05]
[1644201077831,0.0973,42475.0,42466.0,0.05]
[1644201078032,0.0973,42475.0,42463.0,0.05]
[1644201078033,0.1473,42475.0,42463.0,0.06904867]
[1644201078234,0.1473,42475.0,42468.0,0.067]
[1644201078235,0.265047,42475.0,42468.0,0.067]
[1644201078479,0.05,42474.0,42468.0,0.067]
[1644201078881,0.05,42474.0,42469.0,0.00057273]
[1644201079080,0.058871,42471.0,42469.0,0.00057273]
[1644201079479,0.106171,42471.0,42469.0,0.00057273]
[1644201079779,0.206171,42471.0,42469.0,0.00057273]
[1644201079979,0.206171,42471.0,42464.0,0.23839581]
[1644201080180,0.26838638,42470.0,42469.0,0.06]
[1644201080381,0.215171,42471.0,42469.0,0.06]
[1644201080582,0.215171,42471.0,42469.0,0.055]
[1644201081283,0.215171,42471.0,42468.0,0.00057274]
[1644201081479,0.117757,42470.0,42468.0,0.00057274]
[1644201081679,0.05,42469.0,42468.0,0.00057274]
[1644201081883,0.1,42469.0,42468.0,0.00057274]
[1644201082081,0.109,42469.0,42468.0,0.03157274]
[1644201082329,0.104,42469.0,42468.0,0.031]
[1644201082528,0.0563,42469.0,42468.0,0.031]
[1644201082728,0.1063,42469.0,42468.0,0.031]
[1644201082926,0.1098482,42469.0,42468.0,0.031]
[1644201083325,0.1098482,42469.0,42466.0,0.00057276]
[1644201083326,0.1008482,42469.0,42466.0,0.00057276]
[1644201083527,0.1008482,42469.0,42464.0,0.24305668]
[1644201083726,0.1008482,42469.0,42464.0,0.23362944]
[1644201084126,0.1098482,42469.0,42464.0,0.23362944]
[1644201084330,0.1598482,42469.0,42457.0,2.58094082]
[1644201084528,0.1598482,42469.0,42457.0,2.53094082]
[1644201084529,0.058883,42467.0,42457.0,2.53094082]
[1644201084727,0.158883,42467.0,42458.0,0.05]
[1644201085132,0.158883,42467.0,42454.0,0.19887036]
[1644201085330,0.37645642,42466.0,42455.0,0.32026993]
[1644201085528,0.37645642,42466.0,42456.0,0.05]